[Event "Ural District-ch Women 2020"]
[Site "Chelyabinsk"]
[Date "2020.10.01"]
[Round "5.2"]
[White "Filippova, Darya"]
[Black "Filippova, Margarita"]
[Result "1/2-1/2"]
[ECO "D11"]
[WhiteElo "2032"]
[BlackElo "1931"]
[Annotator "ChessBase"]
[PlyCount "82"]
[EventDate "2020.10.01"]
[EventType "swiss"]
[EventCountry "RUS"]
[SourceTitle "playchess.com"]
[Source "ChessBase"]
[SourceQuality "1"]
[TimeControl "5400+30"]

1. d4 {[%emt 0:00:00]} d5 {[%emt 0:00:00]} 2. c4 {[%emt 0:00:30]} c6 {[%emt 0:00:00]} 3. Nf3 {[%emt 0:01:18]} Nf6 {[%emt 0:00:02]} 4. g3 {[%emt 0:01:15]} Bg4 {[%emt 0:00:18]} 5. Bg2 {[%emt 0:08:01]} e6 {[%emt 0:00:13]} 6. O-O {[%emt 0:10:53]} Nbd7 {[%emt 0:01:04]} 7. Nbd2 {[%emt 0:11:13]} Be7 {[%emt 0:01:54]} 8. Re1 {[%emt 0:01:37]} O-O {[%emt 0:00:22]} 9. b3 {[%emt 0:01:45]} Bb4 {[%emt 0:04:31]} 10. Bb2 {[%emt 0:12:58]} Ne4 {[%emt 0:07:55]} 11. a3 {[%emt 0:02:30]} Bxf3 {[%emt 0:05:22]} 12. axb4 {[%emt 0:00:19]} Bxg2 {[%emt 0:00:07]} 13. Kxg2 {[%emt 0:00:09]} f5 {[%emt 0:01:05]} 14. f3 {[%emt 0:05:07]} Ng5 {[%emt 0:05:43]} 15. e3 {[%emt 0:10:02]} a5 {[%emt 0:10:58]} 16. bxa5 {[%emt 0:04:16]} Rxa5 {[%emt 0:00:18]} 17. Qc2 {[%emt 0:00:38]} h5 {[%emt 0:06:08]} 18. Rxa5 {[%emt 0:03:41]} Qxa5 {[%emt 0:00:04]} 19. Bc3 {[%emt 0:00:15]} Qc7 {[%emt 0:00:52]} 20. Qd1 {[%emt 0:01:05]} Nf6 {[%emt 0:04:11]} 21. Qe2 {[%emt 0:02:11]} Ra8 {[%emt 0:01:32]} 22. Ra1 {[%emt 0:02:16]} Rxa1 {[%emt 0:00:23]} 23. Bxa1 {[%emt 0:00:08]} Qa5 {[%emt 0:00:16]} 24. Qd1 {[%emt 0:01:30]} Qa2 {[%emt 0:00:32]} 25. Bc3 {[%emt 0:00:18]} Nf7 {[%emt 0:03:31]} 26. Qb1 {[%emt 0:01:06]} Qxb1 {[%emt 0:01:03]} 27. Nxb1 {[%emt 0:00:09]} g5 {[%emt 0:00:27]} 28. Bb4 {[%emt 0:06:36]} g4 {[%emt 0:00:36]} 29. Be7 {[%emt 0:01:05]} Kg7 {[%emt 0:03:33]} 30. c5 {[%emt 0:03:44]} e5 {[%emt 0:03:06]} 31. Bxf6+ {[%emt 0:01:10]} Kxf6 {[%emt 0:00:04]} 32. f4 {[%emt 0:00:14]} e4 {[%emt 0:01:28]} 33. Nc3 {[%emt 0:02:00]} Ke6 {[%emt 0:00:27]} 34. b4 {[%emt 0:00:50]} Kd7 {[%emt 0:00:50]} 35. Kf2 {[%emt 0:00:13]} Nd8 {[%emt 0:00:57]} 36. Ke2 {[%emt 0:00:16]} Kc7 {[%emt 0:00:39]} 37. b5 {[%emt 0:00:27]} Ne6 {[%emt 0:01:01]} 38. Kd2 {[%emt 0:01:56]} Nd8 {[%emt 0:01:08]} 39. b6+ {[%emt 0:00:16]} Kc8 {[%emt 0:00:19]} 40. Ke2 {[%emt 0:00:30]} Ne6 {[%emt 0:00:07]} 41. Na2 {[%emt 0:00:09]} Nd8 {[%emt 0:00:10]} 1/2-1/2

[Event "Ural District-ch Women 2020"]
[Site "Chelyabinsk"]
[Date "2020.10.01"]
[Round "5.3"]
[White "Chigaeva, Anastasia"]
[Black "Kalenichenko, Alina"]
[Result "0-1"]
[ECO "A00"]
[WhiteElo "2175"]
[BlackElo "1513"]
[Annotator "ChessBase"]
[PlyCount "124"]
[EventDate "2020.10.01"]
[EventType "swiss"]
[EventCountry "RUS"]
[SourceTitle "playchess.com"]
[Source "ChessBase"]
[SourceQuality "1"]
[TimeControl "5400+30"]

1. g3 {[%emt 0:00:00]} g6 {[%emt 0:00:00]} 2. Bg2 {[%emt 0:00:00]} Bg7 {[%emt 0:00:00]} 3. e4 {[%emt 0:00:17]} c5 {[%emt 0:00:00]} 4. Ne2 {[%emt 0:01:06]} Nc6 {[%emt 0:00:00]} 5. O-O {[%emt 0:01:06]} d6 {[%emt 0:00:24]} 6. c3 {[%emt 0:01:03]} e5 {[%emt 0:00:20]} 7. d3 {[%emt 0:03:25]} Qb6 {[%emt 0:04:02]} 8. Na3 {[%emt 0:02:38]} Nge7 {[%emt 0:08:06]} 9. Be3 {[%emt 0:08:21]} Be6 {[%emt 0:02:26]} 10. Qd2 {[%emt 0:05:07]} O-O {[%emt 0:08:53]} 11. Nc4 {[%emt 0:08:46]} Qc7 {[%emt 0:01:16]} 12. Bh6 {[%emt 0:09:34]} b5 {[%emt 0:02:18]} 13. Bxg7 {[%emt 0:01:21]} Kxg7 {[%emt 0:00:11]} 14. Ne3 {[%emt 0:00:55]} f6 {[%emt 0:05:54]} 15. f4 {[%emt 0:09:56]} Bf7 {[%emt 0:06:37]} 16. Ng4 {[%emt 0:05:48]} Ng8 {[%emt 0:06:37]} 17. Rf2 {[%emt 0:06:47]} h5 {[%emt 0:01:32]} 18. Ne3 {[%emt 0:00:15]} Qe7 {[%emt 0:09:08]} 19. Bf3 {[%emt 0:05:49]} Nh6 {[%emt 0:02:35]} 20. Nd5 {[%emt 0:01:21]} Bxd5 {[%emt 0:02:15]} 21. exd5 {[%emt 0:00:01]} Nb8 {[%emt 0:00:31]} 22. a4 {[%emt 0:02:29]} bxa4 {[%emt 0:02:48]} 23. Rxa4 {[%emt 0:00:31]} Nd7 {[%emt 0:00:28]} 24. Rf1 {[%emt 0:02:21]} Nb6 {[%emt 0:04:13]} 25. Ra6 {[%emt 0:01:29]} c4 {[%emt 0:04:23]} 26. Rfa1 {[%emt 0:02:38]} Rfe8 {[%emt 0:01:40]} 27. Bg2 {[%emt 0:07:44]} cxd3 {[%emt 0:04:41]} 28. Qxd3 {[%emt 0:00:31]} Qc7 {[%emt 0:01:27]} 29. b4 {[%emt 0:03:03]} Rec8 {[%emt 0:06:14]} 30. fxe5 {[%emt 0:02:49]} fxe5 {[%emt 0:00:12]} 31. Be4 {[%emt 0:00:16]} Qf7 {[%emt 0:04:02]} 32. Qf3 {[%emt 0:01:58]} Qxf3 {[%emt 0:02:51]} 33. Bxf3 {[%emt 0:00:02]} Nf7 {[%emt 0:01:35]} 34. Rxa7 {[%emt 0:00:38]} Rxa7 {[%emt 0:00:51]} 35. Rxa7 {[%emt 0:00:01]} Rc4 {[%emt 0:00:23]} 36. Bg2 {[%emt 0:06:16]} Rc8 {[%emt 0:03:05]} 37. Bh3 {[%emt 0:01:15]} Rf8 {[%emt 0:00:32]} 38. Be6 {[%emt 0:00:25]} Kf6 {[%emt 0:00:11]} 39. Ra6 {[%emt 0:00:40]} Nc4 {[%emt 0:00:17]} 40. Rc6 {[%emt 0:00:18]} Ne3 {[%emt 0:00:49]} 41. Kf2 {[%emt 0:00:49]} Ng4+ {[%emt 0:00:54]} 42. Bxg4 {[%emt 0:00:27]} hxg4 {[%emt 0:00:06]} 43. b5 {[%emt 0:00:27]} Ng5 {[%emt 0:00:45]} 44. b6 {[%emt 0:00:33]} Kf5 {[%emt 0:01:18]} 45. Ke3 {[%emt 0:00:37]} Ne4 {[%emt 0:02:02]} 46. b7 {[%emt 0:00:32]} Rb8 {[%emt 0:00:29]} 47. Rb6 {[%emt 0:00:32]} Nc5 {[%emt 0:00:26]} 48. Rxd6 {[%emt 0:00:18]} Rxb7 {[%emt 0:00:08]} 49. Rd8 {[%emt 0:00:25]} Kf6 {[%emt 0:00:44]} 50. Rc8 {[%emt 0:00:29]} Nd7 {[%emt 0:00:24]} 51. Rc6+ {[%emt 0:00:28]} Kf7 {[%emt 0:00:05]} 52. Kd3 {[%emt 0:00:46]} Nf6 {[%emt 0:00:29]} 53. c4 {[%emt 0:00:17]} Rd7 {[%emt 0:01:18]} 54. Nc3 {[%emt 0:00:19]} Ra7 {[%emt 0:01:29]} 55. c5 {[%emt 0:00:57]} Ra3 {[%emt 0:00:33]} 56. Rc7+ {[%emt 0:00:31]} Ke8 {[%emt 0:00:19]} 57. Kd2 {[%emt 0:00:30]} Rxc3 {[%emt 0:00:28]} 58. Rc8+ {[%emt 0:00:24]} Kd7 {[%emt 0:00:06]} 59. Kxc3 {[%emt 0:00:36]} Kxc8 {[%emt 0:00:20]} 60. Kc4 {[%emt 0:00:12]} Kd7 {[%emt 0:00:26]} 61. d6 {[%emt 0:00:47]} Kc6 {[%emt 0:00:06]} 62. Kb4 {[%emt 0:00:22]} Nd7 {[%emt 0:00:21]} 0-1

[Event "Ural District-ch Women 2020"]
[Site "Chelyabinsk"]
[Date "2020.10.01"]
[Round "5.4"]
[White "Mikheeva, Galina"]
[Black "Shnayder, Violetta"]
[Result "1/2-1/2"]
[ECO "B06"]
[WhiteElo "1901"]
[BlackElo "1923"]
[Annotator "ChessBase"]
[PlyCount "70"]
[EventDate "2020.10.01"]
[EventType "swiss"]
[EventCountry "RUS"]
[SourceTitle "playchess.com"]
[Source "ChessBase"]
[SourceQuality "1"]
[TimeControl "5400+30"]

1. e4 {[%emt 0:00:00]} g6 {[%emt 0:00:00]} 2. d4 {[%emt 0:00:00]} Bg7 {[%emt 0:00:00]} 3. Nc3 {[%emt 0:00:02]} d6 {[%emt 0:00:07]} 4. f4 {[%emt 0:00:20]} Nc6 {[%emt 0:00:26]} 5. Be3 {[%emt 0:01:39]} a6 {[%emt 0:11:48]} 6. Nf3 {[%emt 0:03:20]} Bg4 {[%emt 0:01:57]} 7. Be2 {[%emt 0:00:47]} e5 {[%emt 0:00:55]} 8. d5 {[%emt 0:04:01]} Bxf3 {[%emt 0:01:50]} 9. Bxf3 {[%emt 0:00:38]} Nd4 {[%emt 0:02:14]} 10. fxe5 {[%emt 0:07:46]} dxe5 {[%emt 0:01:42]} 11. O-O {[%emt 0:04:58]} Ne7 {[%emt 0:05:46]} 12. Ne2 {[%emt 0:06:36]} Nxf3+ {[%emt 0:02:52]} 13. Rxf3 {[%emt 0:04:06]} f5 {[%emt 0:09:16]} 14. exf5 {[%emt 0:02:37]} gxf5 {[%emt 0:09:45]} 15. Bg5 {[%emt 0:02:51]} Qd7 {[%emt 0:09:58]} 16. Bxe7 {[%emt 0:05:27]} Qxe7 {[%emt 0:08:40]} 17. Rxf5 {[%emt 0:00:55]} O-O-O {[%emt 0:00:29]} 18. Nc3 {[%emt 0:01:37]} Qb4 {[%emt 0:04:47]} 19. Rg5 {[%emt 0:08:49]} Qxb2 {[%emt 0:07:16]} 20. Na4 {[%emt 0:00:19]} Qb4 {[%emt 0:01:12]} 21. c3 {[%emt 0:00:11]} Qe7 {[%emt 0:00:31]} 22. Qg4+ {[%emt 0:00:05]} Rd7 {[%emt 0:00:26]} 23. d6 {[%emt 0:00:37]} Qxd6 {[%emt 0:02:50]} 24. Rxg7 {[%emt 0:00:08]} Rhd8 {[%emt 0:00:09]} 25. Rxh7 {[%emt 0:04:07]} Kb8 {[%emt 0:00:24]} 26. Rxd7 {[%emt 0:00:11]} Rxd7 {[%emt 0:00:05]} 27. Qe4 {[%emt 0:05:49]} b5 {[%emt 0:01:32]} 28. Nb2 {[%emt 0:05:50]} Qc5+ {[%emt 0:00:40]} 29. Kh1 {[%emt 0:01:25]} Qxc3 {[%emt 0:00:20]} 30. Qb1 {[%emt 0:04:54]} Rd2 {[%emt 0:06:26]} 31. Nd1 {[%emt 0:00:18]} Qd4 {[%emt 0:00:11]} 32. h3 {[%emt 0:03:39]} e4 {[%emt 0:00:17]} 33. Qc1 {[%emt 0:02:36]} e3 {[%emt 0:00:14]} 34. Nxe3 {[%emt 0:01:07]} Qxe3 {[%emt 0:00:14]} 35. Qc6 {[%emt 0:00:07]} Re2 {[%emt 0:03:25]} 1/2-1/2

[Event "Ural District-ch Women 2020"]
[Site "Chelyabinsk"]
[Date "2020.10.01"]
[Round "5.5"]
[White "Semenova, Anastasia"]
[Black "Mukhina, Jana"]
[Result "0-1"]
[ECO "B09"]
[WhiteElo "1757"]
[BlackElo "2068"]
[Annotator "ChessBase"]
[PlyCount "56"]
[EventDate "2020.10.01"]
[EventType "swiss"]
[EventCountry "RUS"]
[SourceTitle "playchess.com"]
[Source "ChessBase"]
[SourceQuality "1"]
[TimeControl "5400+30"]

1. e4 {[%emt 0:00:00]} d6 {[%emt 0:00:00]} 2. d4 {[%emt 0:00:00]} Nf6 {[%emt 0:00:00]} 3. Nc3 {[%emt 0:00:00]} g6 {[%emt 0:00:00]} 4. f4 {[%emt 0:00:18]} Bg7 {[%emt 0:00:00]} 5. Nf3 {[%emt 0:00:17]} O-O {[%emt 0:00:43]} 6. Be3 {[%emt 0:00:35]} a6 {[%emt 0:05:10]} 7. a4 {[%emt 0:02:58]} b6 {[%emt 0:01:43]} 8. Be2 {[%emt 0:06:07]} Bb7 {[%emt 0:09:38]} 9. e5 {[%emt 0:00:35]} Ng4 {[%emt 0:06:03]} 10. Bc1 {[%emt 0:02:32]} c5 {[%emt 0:01:17]} 11. dxc5 {[%emt 0:12:26]} bxc5 {[%emt 0:10:01]} 12. h3 {[%emt 0:02:09]} Nh6 {[%emt 0:00:31]} 13. Be3 {[%emt 0:01:41]} Nf5 {[%emt 0:06:11]} 14. Bf2 {[%emt 0:00:07]} dxe5 {[%emt 0:00:37]} 15. Qxd8 {[%emt 0:03:20]} Rxd8 {[%emt 0:00:18]} 16. fxe5 {[%emt 0:00:39]} Nd4 {[%emt 0:01:47]} 17. O-O-O {[%emt 0:14:32]} Nbc6 {[%emt 0:01:34]} 18. Nxd4 {[%emt 0:05:12]} Nxd4 {[%emt 0:18:56]} 19. Bc4 {[%emt 0:10:39]} Bxg2 {[%emt 0:02:03]} 20. Rhe1 {[%emt 0:05:03]} Nf3 {[%emt 0:09:30]} 21. Rxd8+ {[%emt 0:07:03]} Rxd8 {[%emt 0:00:05]} 22. Rd1 {[%emt 0:00:19]} Bh6+ {[%emt 0:00:58]} 23. Kb1 {[%emt 0:00:18]} Rxd1+ {[%emt 0:05:30]} 24. Nxd1 {[%emt 0:00:50]} Nd2+ {[%emt 0:00:01]} 25. Ka2 {[%emt 0:00:07]} Nxc4 {[%emt 0:00:13]} 26. e6 {[%emt 0:04:10]} Bxh3 {[%emt 0:00:46]} 27. Bxc5 {[%emt 0:00:27]} Bxe6 {[%emt 0:00:19]} 28. b3 {[%emt 0:00:06]} Nd6 {[%emt 0:00:39]} 0-1

[Event "Ural District-ch Women 2020"]
[Site "Chelyabinsk"]
[Date "2020.10.02"]
[Round "6.1"]
[White "Kalenichenko, Alina"]
[Black "Semenova, Elena"]
[Result "0-1"]
[ECO "D20"]
[WhiteElo "1513"]
[BlackElo "2283"]
[Annotator "ChessBase"]
[PlyCount "96"]
[EventDate "2020.10.01"]
[EventType "swiss"]
[EventCountry "RUS"]
[SourceTitle "playchess.com"]
[Source "ChessBase"]
[SourceQuality "1"]
[TimeControl "5400+30"]

1. d4 {[%emt 0:00:00]} d5 {[%emt 0:00:00]} 2. c4 {[%emt 0:00:00]} dxc4 {[%emt 0:00:00]} 3. e4 {[%emt 0:00:00]} Nf6 {[%emt 0:00:00]} 4. Nc3 {[%emt 0:00:01]} e5 {[%emt 0:00:20]} 5. Nf3 {[%emt 0:01:46]} exd4 {[%emt 0:00:32]} 6. Qxd4 {[%emt 0:01:36]} Qxd4 {[%emt 0:01:04]} 7. Nxd4 {[%emt 0:00:07]} Bc5 {[%emt 0:01:26]} 8. Ndb5 {[%emt 0:03:23]} Na6 {[%emt 0:02:31]} 9. Bf4 {[%emt 0:00:51]} O-O {[%emt 0:08:15]} 10. Nxc7 {[%emt 0:05:47]} Nxc7 {[%emt 0:00:52]} 11. Bxc7 {[%emt 0:00:06]} b5 {[%emt 0:12:14]} 12. f3 {[%emt 0:07:11]} Bd7 {[%emt 0:11:22]} 13. O-O-O {[%emt 0:01:07]} b4 {[%emt 0:04:09]} 14. Nd5 {[%emt 0:00:45]} Nxd5 {[%emt 0:00:40]} 15. Rxd5 {[%emt 0:00:42]} Be3+ {[%emt 0:00:04]} 16. Kb1 {[%emt 0:00:40]} Be6 {[%emt 0:01:05]} 17. Rb5 {[%emt 0:04:24]} Rfc8 {[%emt 0:04:26]} 18. Rb7 {[%emt 0:07:46]} c3 {[%emt 0:12:04]} 19. Bd3 {[%emt 0:02:48]} Bb6 {[%emt 0:02:35]} 20. Bxb6 {[%emt 0:05:56]} axb6 {[%emt 0:00:31]} 21. b3 {[%emt 0:00:17]} Rd8 {[%emt 0:01:52]} 22. Rd1 {[%emt 0:01:29]} Rd6 {[%emt 0:14:15]} 23. e5 {[%emt 0:05:32]} Rd5 {[%emt 0:02:54]} 24. Rxb6 {[%emt 0:00:17]} g5 {[%emt 0:00:39]} 25. Rb5 {[%emt 0:11:59]} Rxb5 {[%emt 0:01:49]} 26. Bxb5 {[%emt 0:00:09]} c2+ {[%emt 0:01:47]} 27. Kxc2 {[%emt 0:00:07]} Rxa2+ {[%emt 0:00:04]} 28. Kd3 {[%emt 0:00:39]} Rxg2 {[%emt 0:02:22]} 29. Bc4 {[%emt 0:02:28]} Rxh2 {[%emt 0:02:11]} 30. Bxe6 {[%emt 0:02:19]} fxe6 {[%emt 0:00:01]} 31. Kc4 {[%emt 0:04:09]} Rh4+ {[%emt 0:00:32]} 32. Kc5 {[%emt 0:00:07]} Rf4 {[%emt 0:00:57]} 33. Rd8+ {[%emt 0:00:57]} Kg7 {[%emt 0:00:54]} 34. Rd7+ {[%emt 0:00:14]} Kg6 {[%emt 0:02:09]} 35. Re7 {[%emt 0:00:24]} Rxf3 {[%emt 0:00:45]} 36. Rxe6+ {[%emt 0:00:10]} Kf7 {[%emt 0:00:26]} 37. Ra6 {[%emt 0:02:15]} Rxb3 {[%emt 0:00:16]} 38. Kd5 {[%emt 0:01:12]} g4 {[%emt 0:01:46]} 39. Rf6+ {[%emt 0:02:14]} Kg7 {[%emt 0:00:15]} 40. Ke6 {[%emt 0:00:14]} h5 {[%emt 0:00:51]} 41. Ke7 {[%emt 0:01:41]} g3 {[%emt 0:01:12]} 42. Rf7+ {[%emt 0:01:02]} Kh6 {[%emt 0:00:29]} 43. Kf8 {[%emt 0:02:41]} Re3 {[%emt 0:01:17]} 44. Rg7 {[%emt 0:00:38]} h4 {[%emt 0:00:24]} 45. Rg4 {[%emt 0:01:43]} Kh5 {[%emt 0:00:04]} 46. Rxb4 {[%emt 0:00:08]} Rxe5 {[%emt 0:00:05]} 47. Kf7 {[%emt 0:00:18]} g2 {[%emt 0:00:05]} 48. Rb1 {[%emt 0:00:16]} Rf5+ {[%emt 0:00:11]} 0-1

[Event "Ural District-ch Women 2020"]
[Site "Chelyabinsk"]
[Date "2020.10.02"]
[Round "6.2"]
[White "Mikheeva, Galina"]
[Black "Filippova, Darya"]
[Result "1-0"]
[ECO "C44"]
[WhiteElo "1901"]
[BlackElo "2032"]
[Annotator "ChessBase"]
[PlyCount "48"]
[EventDate "2020.10.01"]
[EventType "swiss"]
[EventCountry "RUS"]
[SourceTitle "playchess.com"]
[Source "ChessBase"]
[SourceQuality "1"]
[TimeControl "5400+30"]

1. e4 {[%emt 0:00:00]} e5 {[%emt 0:00:25]} 2. Nf3 {[%emt 0:00:00]} Nc6 {[%emt 0:00:11]} 3. d4 {[%emt 0:00:00]} exd4 {[%emt 0:00:17]} 4. Bc4 {[%emt 0:00:00]} d6 {[%emt 0:20:16]} 5. Nxd4 {[%emt 0:00:11]} Nf6 {[%emt 0:02:13]} 6. Nxc6 {[%emt 0:01:50]} bxc6 {[%emt 0:00:11]} 7. Nc3 {[%emt 0:00:26]} Be7 {[%emt 0:02:15]} 8. O-O {[%emt 0:00:19]} O-O {[%emt 0:00:29]} 9. Bf4 {[%emt 0:03:43]} Bg4 {[%emt 0:08:15]} 10. Qd3 {[%emt 0:06:50]} Rb8 {[%emt 0:04:19]} 11. Bb3 {[%emt 0:05:45]} Qc8 {[%emt 0:01:20]} 12. h3 {[%emt 0:03:51]} Bh5 {[%emt 0:04:37]} 13. e5 {[%emt 0:06:57]} Ne8 {[%emt 0:02:39]} 14. Qg3 {[%emt 0:09:44]} d5 {[%emt 0:01:21]} 15. Be3 {[%emt 0:02:40]} a5 {[%emt 0:04:56]} 16. f4 {[%emt 0:06:50]} f6 {[%emt 0:00:50]} 17. Na4 {[%emt 0:04:54]} Bf7 {[%emt 0:01:40]} 18. Nc5 {[%emt 0:08:17]} Kh8 {[%emt 0:05:21]} 19. Nd3 {[%emt 0:02:25]} Bg8 {[%emt 0:06:15]} 20. Rae1 {[%emt 0:01:42]} g6 {[%emt 0:02:08]} 21. f5 {[%emt 0:05:25]} fxe5 {[%emt 0:06:20]} 22. Nxe5 {[%emt 0:01:18]} gxf5 {[%emt 0:05:15]} 23. Nxc6 {[%emt 0:01:44]} Bb4 {[%emt 0:02:58]} 24. Bd4+ {[%emt 0:01:16]} Nf6 {[%emt 0:00:07]} 1-0

[Event "Ural District-ch Women 2020"]
[Site "Chelyabinsk"]
[Date "2020.10.02"]
[Round "6.3"]
[White "Mukhina, Jana"]
[Black "Nasybullina, Dayana"]
[Result "1-0"]
[ECO "E42"]
[WhiteElo "2068"]
[BlackElo "1787"]
[Annotator "ChessBase"]
[PlyCount "69"]
[EventDate "2020.10.01"]
[EventType "swiss"]
[EventCountry "RUS"]
[SourceTitle "playchess.com"]
[Source "ChessBase"]
[SourceQuality "1"]
[TimeControl "5400+30"]

1. d4 {[%emt 0:00:00]} Nf6 {[%emt 0:00:00]} 2. c4 {[%emt 0:00:00]} e6 {[%emt 0:00:00]} 3. Nc3 {[%emt 0:00:25]} Bb4 {[%emt 0:00:11]} 4. e3 {[%emt 0:00:53]} c5 {[%emt 0:01:47]} 5. Nge2 {[%emt 0:00:09]} b6 {[%emt 0:05:49]} 6. a3 {[%emt 0:00:06]} Ba5 {[%emt 0:00:13]} 7. Rb1 {[%emt 0:00:05]} Na6 {[%emt 0:00:30]} 8. g3 {[%emt 0:00:10]} Bb7 {[%emt 0:01:25]} 9. d5 {[%emt 0:00:06]} Ne4 {[%emt 0:10:20]} 10. Bg2 {[%emt 0:01:57]} Nxc3 {[%emt 0:00:20]} 11. Nxc3 {[%emt 0:04:21]} Bxc3+ {[%emt 0:01:03]} 12. bxc3 {[%emt 0:00:05]} d6 {[%emt 0:00:25]} 13. Qa4+ {[%emt 0:02:19]} Kf8 {[%emt 0:00:25]} 14. O-O {[%emt 0:01:21]} e5 {[%emt 0:10:39]} 15. f4 {[%emt 0:02:33]} Qe8 {[%emt 0:17:47]} 16. Qc2 {[%emt 0:01:28]} f6 {[%emt 0:02:26]} 17. a4 {[%emt 0:11:52]} Bc8 {[%emt 0:08:18]} 18. a5 {[%emt 0:05:54]} Rb8 {[%emt 0:00:29]} 19. axb6 {[%emt 0:02:00]} axb6 {[%emt 0:00:10]} 20. fxe5 {[%emt 0:10:11]} Qxe5 {[%emt 0:01:15]} 21. e4 {[%emt 0:01:27]} g5 {[%emt 0:02:30]} 22. Rb3 {[%emt 0:08:55]} Kg7 {[%emt 0:07:28]} 23. Bd2 {[%emt 0:02:12]} h5 {[%emt 0:01:46]} 24. Rfb1 {[%emt 0:09:54]} h4 {[%emt 0:00:49]} 25. Qd3 {[%emt 0:00:57]} h3 {[%emt 0:09:00]} 26. Bh1 {[%emt 0:00:17]} Kh6 {[%emt 0:06:45]} 27. Rxb6 {[%emt 0:00:38]} Rxb6 {[%emt 0:00:08]} 28. Rxb6 {[%emt 0:00:02]} Nc7 {[%emt 0:02:08]} 29. Bf3 {[%emt 0:04:07]} Ba6 {[%emt 0:04:46]} 30. Rc6 {[%emt 0:06:33]} Qe7 {[%emt 0:01:46]} 31. e5 {[%emt 0:00:10]} fxe5 {[%emt 0:01:15]} 32. Qf5 {[%emt 0:00:36]} Bc8 {[%emt 0:03:03]} 33. Rxd6+ {[%emt 0:08:39]} Ne6 {[%emt 0:00:56]} 34. dxe6 {[%emt 0:01:39]} Rf8 {[%emt 0:00:35]} 35. Bxg5+ {[%emt 0:00:33]} 1-0

[Event "Ural District-ch Women 2020"]
[Site "Chelyabinsk"]
[Date "2020.10.02"]
[Round "6.4"]
[White "Filippova, Margarita"]
[Black "Shamsutdinova, Karina"]
[Result "1-0"]
[ECO "A38"]
[WhiteElo "1931"]
[BlackElo "1763"]
[Annotator "ChessBase"]
[PlyCount "113"]
[EventDate "2020.10.01"]
[EventType "swiss"]
[EventCountry "RUS"]
[SourceTitle "playchess.com"]
[Source "ChessBase"]
[SourceQuality "1"]
[TimeControl "5400+30"]

1. Nf3 {[%emt 0:00:00]} Nf6 {[%emt 0:00:00]} 2. c4 {[%emt 0:00:00]} c5 {[%emt 0:00:05]} 3. Nc3 {[%emt 0:00:00]} Nc6 {[%emt 0:01:03]} 4. g3 {[%emt 0:01:23]} g6 {[%emt 0:09:53]} 5. Bg2 {[%emt 0:00:15]} Bg7 {[%emt 0:00:42]} 6. O-O {[%emt 0:00:10]} O-O {[%emt 0:01:19]} 7. e4 {[%emt 0:04:53]} e5 {[%emt 0:02:58]} 8. d3 {[%emt 0:03:22]} d6 {[%emt 0:02:29]} 9. Nd5 {[%emt 0:00:24]} Nxd5 {[%emt 0:03:49]} 10. cxd5 {[%emt 0:01:16]} Nd4 {[%emt 0:00:09]} 11. Nd2 {[%emt 0:01:57]} f5 {[%emt 0:15:41]} 12. f4 {[%emt 0:00:46]} exf4 {[%emt 0:10:15]} 13. gxf4 Qh4 {[%emt 0:12:18]} 14. Nf3 {[%emt 0:18:28]} Nxf3+ {[%emt 0:07:55]} 15. Qxf3 {[%emt 0:01:13]} Bd7 {[%emt 0:01:48]} 16. Rb1 c4 17. dxc4 {[%emt 0:10:58]} fxe4 {[%emt 0:02:52]} 18. Qe3 {[%emt 0:01:53]} Bf5 {[%emt 0:02:19]} 19. b4 {[%emt 0:04:50]} b6 {[%emt 0:02:02]} 20. Bb2 {[%emt 0:03:06]} Bxb2 {[%emt 0:03:31]} 21. Rxb2 {[%emt 0:00:04]} Qe7 {[%emt 0:02:59]} 22. Re1 {[%emt 0:05:00]} Rfe8 {[%emt 0:02:07]} 23. a4 {[%emt 0:00:24]} Rac8 {[%emt 0:01:56]} 24. Bf1 {[%emt 0:01:07]} Qd7 {[%emt 0:02:13]} 25. Ra2 {[%emt 0:04:44]} Qb7 {[%emt 0:00:45]} 26. Rb1 {[%emt 0:01:14]} a6 {[%emt 0:03:48]} 27. Rab2 {[%emt 0:01:27]} Re7 {[%emt 0:02:31]} 28. Re1 {[%emt 0:02:09]} b5 {[%emt 0:02:47]} 29. axb5 {[%emt 0:01:01]} axb5 {[%emt 0:00:02]} 30. c5 {[%emt 0:01:33]} Qxd5 {[%emt 0:00:24]} 31. Rd2 {[%emt 0:00:19]} Qb7 {[%emt 0:02:22]} 32. Rxd6 {[%emt 0:00:32]} Rc6 {[%emt 0:01:16]} 33. Rd8+ {[%emt 0:00:46]} Kf7 {[%emt 0:00:55]} 34. Red1 {[%emt 0:01:15]} Re8 {[%emt 0:00:53]} 35. Rxe8 {[%emt 0:01:23]} Kxe8 {[%emt 0:00:01]} 36. Qd4 {[%emt 0:00:16]} Kf7 {[%emt 0:01:02]} 37. Qd5+ {[%emt 0:03:33]} Kg7 {[%emt 0:00:28]} 38. Ra1 {[%emt 0:01:36]} Rc7 {[%emt 0:00:33]} 39. Qxb7 {[%emt 0:02:53]} Rxb7 {[%emt 0:00:01]} 40. Ra5 {[%emt 0:00:48]} Bd7 {[%emt 0:00:07]} 41. Kf2 {[%emt 0:00:10]} Bc6 {[%emt 0:01:34]} 42. Ke3 {[%emt 0:00:17]} Kf7 {[%emt 0:00:36]} 43. Ra6 {[%emt 0:00:14]} Bd5 {[%emt 0:00:25]} 44. c6 {[%emt 0:02:52]} Rc7 {[%emt 0:00:01]} 45. Bxb5 {[%emt 0:00:13]} Ke6 {[%emt 0:00:15]} 46. Ba4 {[%emt 0:00:44]} Kd6 {[%emt 0:00:46]} 47. b5 {[%emt 0:00:11]} Bc4 {[%emt 0:00:38]} 48. Ra8 {[%emt 0:02:38]} Kc5 {[%emt 0:00:40]} 49. Rb8 {[%emt 0:00:18]} Ra7 {[%emt 0:00:34]} 50. b6 {[%emt 0:01:40]} Rxa4 {[%emt 0:00:04]} 51. c7 {[%emt 0:00:10]} Ra3+ {[%emt 0:00:29]} 52. Kxe4 {[%emt 0:00:31]} Be6 {[%emt 0:01:03]} 53. b7 {[%emt 0:00:21]} Bf5+ {[%emt 0:00:21]} 54. Ke5 {[%emt 0:00:08]} Re3+ {[%emt 0:00:34]} 55. Kf6 {[%emt 0:00:10]} Re6+ {[%emt 0:00:27]} 56. Kf7 {[%emt 0:00:43]} Kd6 {[%emt 0:00:44]} 57. Rd8+ {[%emt 0:00:35]} 1-0